Cogmind - Beta 14 @@@ ROGUE MODE // 2024.10.31 @ 23:00:39 Player: Udabudha Result: Destroyed by Y-54 Guardian with Flak Gun Performance ------------- Evolutions (3) 1500 Regions Visited (7) 1400 Robots Destroyed (36) 180 Value Destroyed (886) 886 Prototype IDs (0) 0 Alien Tech Used (0) 0 Bonus (303) 303 TOTAL SCORE: 4269 Bonus ------- High Alert Combat Kills 22 Follower Combat Kills 281 Cogmind --------- Core Integrity 0/700 Matter 295/300 Energy 100/100 System Corruption 11% Temperature Cool (18) Movement Core (50) Location -7/Factory Parts ------- > --- POWER (1) -------- (None) > --- PROPULSION (8) --- (None) > --- UTILITY (2) ------ (None) > --- WEAPON (2) ------- (None) > --- INVENTORY (5) ---- Hardened Heavy Armor Plating Peak State ------------ > --- POWER ------------ (None) > --- PROPULSION ------- Light Treads Titanium Leg > --- UTILITY ---------- Medium Reactive Plating Improved Remote Shield > --- WEAPON ----------- Assault Rifle Heavy Hammer > --- INVENTORY -------- Hardened Heavy Armor Plating Hardened Heavy Armor Plating [Rating: 19] Favorites ----------- Power Light Ion Engine Engine Light Ion Engine Propulsion Aluminum Leg Treads Light Treads Leg Aluminum Leg Utility Small Storage Unit Device Sensor Array Storage Small Storage Unit Processor Improved Terrain Scan Processor Protection Medium Reactive Plating Weapon Assault Rifle Energy Gun Beam Rifle Ballistic Gun Assault Rifle Launcher Grenade Launcher Impact Weapon Heavy Hammer Build | -11 -10 -10 -9 -9 -8 -8 -7 ------- Run | Yrd Mat Min Mat Min Mat Sto Fac Slots Evolved 6 | . . . 2 . 2 . 2 Power . | . . . . . . . . Propulsion 6 | . . . 2 . 2 . 2 Utility . | . . . . . . . . Weapon . | . . . . . . . . Parts Attached 27 | 5 2 . 2 2 3 3 10 Power 2 | 1 . . . 1 . . . Engine 2 | 1 . . . 1 . . . Core . | . . . . . . . . Reactor . | . . . . . . . . Propulsion 9 | 1 1 . 2 . 2 1 2 Treads 2 | . . . . . . 1 1 Leg 7 | 1 1 . 2 . 2 . 1 Wheel . | . . . . . . . . Hover . | . . . . . . . . Flight . | . . . . . . . . Utility 7 | 1 1 . . . . . 5 Device 3 | . 1 . . . . . 2 Storage 1 | 1 . . . . . . . Processor 1 | . . . . . . . 1 Hackware . | . . . . . . . . Protection 2 | . . . . . . . 2 Artifact . | . . . . . . . . Weapon 9 | 2 . . . 1 1 2 3 Energy Gun 2 | . . . . . . 1 1 Energy Cannon . | . . . . . . . . Ballistic Gun 5 | 2 . . . . 1 . 2 Ballistic Cannon . | . . . . . . . . Launcher 1 | . . . . 1 . . . Special Weapon . | . . . . . . . . Impact Weapon 1 | . . . . . . 1 . Slashing Weapon . | . . . . . . . . Piercing Weapon . | . . . . . . . . Special Melee Weapon . | . . . . . . . . Unidentified Prototypes . | . . . . . . . . Parts Lost 21 | . . . . 1 1 6 13 Power 2 | . . . . 1 . . 1 Propulsion 9 | . . . . . 1 4 4 Utility 4 | . . . . . . 1 3 Weapon 6 | . . . . . . 1 5 Highest Loss Streak 4 | . . . . 1 1 4 4 To Critical Strikes . | . . . . . . . . Average Slot Usage (%) 61 | . 99 100 89 97 91 71 35 Engine 6 | . 14 14 11 11 9 9 2 Treads 3 | . . . . . . 8 4 Leg 16 | . 28 28 33 44 46 19 4 Device 7 | . 13 14 11 11 9 7 3 Storage 7 | . 14 14 11 11 9 9 3 Protection 1 | . . . . . . . 2 Ballistic Gun 10 | . 28 28 22 16 9 9 3 Impact Weapon 3 | . . . . . . 4 6 Peak Build Rating 19 | 5 7 7 9 9 12 13 19 Average Rating 10 | 3 6 7 8 8 11 10 11 On Entrance 7 | . 5 7 7 9 9 12 9 Naked Turns 6 | . . . . . . . 6 Heaviest Build 33 | 14 15 15 15 15 15 15 33 Greatest Support 60 | 10 20 20 40 40 60 50 20 Greatest Overweight (x) 6 | 1 . . . . . 1 6 Average Overweight (x) . | . . . . . . . . Largest Inventory Capacity 8 | 8 8 8 8 8 8 8 8 Average Capacity 7 | 7 8 8 8 8 8 8 6 Most Carried 8 | 8 7 7 8 8 6 6 5 Average Carried 4 | 5 6 7 7 6 5 4 3 Final Capacity 8 | 8 8 8 8 8 8 8 5 Final Carried 7 | 7 7 7 6 6 6 5 2 Class Distribution -------------------- 72% | Mutant 27% | Commander-Mutant Dominant Class ---------------- Mutant | -10/Materials Mutant | -10/Mines Mutant | -9/Materials Mutant | -9/Mines Mutant | -8/Materials Commander-Mutant | -8/Storage Mutant | -7/Factory Resources | -11 -10 -10 -9 -9 -8 -8 -7 ----------- Run | Yrd Mat Min Mat Min Mat Sto Fac Matter Collected 853 | 250 47 27 134 68 67 140 120 Remotely . | . . . . . . . . Salvage Created 1200 | . 58 88 204 38 127 312 373 Parts 81 | . 6 11 17 . 10 23 14 Haulers Intercepted . | . . . . . . . . Recyclers Shooed 1 | . . . . . . . 1 Parts Field Recycled . | . . . . . . . . Retrieved Matter . | . . . . . . . . Parts Self-Destructed . | . . . . . . . . Prevented . | . . . . . . . . Kills | -11 -10 -10 -9 -9 -8 -8 -7 ------- Run | Yrd Mat Min Mat Min Mat Sto Fac Combat Hostiles Destroyed 35 | . 3 6 7 5 2 8 4 Guns 29 | . 3 6 7 1 2 6 4 AOE 6 | . . . . 4 . 2 . Classes Destroyed 9 | . 2 . 2 1 1 1 2 Worker 1 | . . . . . . . 1 Builder 2 | . . . . . 1 1 . Recycler 2 | . . . . . . . 2 Operator 1 | . 1 . . . . . . Swarmer 15 | . 3 6 4 . . 2 . Grunt 8 | . . . 2 . . 2 4 Duelist 1 | . . . . . . 1 . Sentry 6 | . . . 1 . 2 3 . Assembled 5 | . . . . 5 . . . Best Kill Streak 7 | . 3 3 4 5 2 7 2 Combat Bots Only 6 | . 3 3 4 5 1 6 2 Max Kills in Single Turn 2 | . 2 1 2 2 1 2 1 Gunslinging 1 | . 1 . 1 . . . . Exploded 2 | . . . . 2 . 1 . Melee . | . . . . . . . . Uniques/NPCs Destroyed . | . . . . . . . . Combat | -11 -10 -10 -9 -9 -8 -8 -7 -------- Run | Yrd Mat Min Mat Min Mat Sto Fac Hostile Shots Fired 507 | . 17 18 29 15 12 59 357 Missed 179 | . 9 4 6 5 2 20 133 Damage Taken 3717 | . 67 105 217 139 162 659 2368 Core 913 | . 24 15 18 18 27 109 702 Absorbed by Shields 17 | . . . . . . . 17 Ignored by Resistances 193 | . . . . . . . 193 Core Remaining (%) 87 | 100 . 84 . 91 . 75 . Volleys Fired 93 | . 6 7 15 7 9 25 24 Largest 2 | . 2 2 2 2 2 2 1 Hottest 81 | . 40 40 40 50 55 81 56 Shots Fired 134 | . 12 14 30 10 10 34 24 Gun 127 | . 12 14 30 7 9 31 24 Cannon . | . . . . . . . . Launcher 7 | . . . . 3 1 3 . Special . | . . . . . . . . Kinetic 109 | . 12 14 30 7 9 25 12 Thermal 18 | . . . . . . 6 12 Explosive 7 | . . . . 3 1 3 . Electromagnetic . | . . . . . . . . Robot Hit Streak 9 | . 6 4 5 2 9 7 7 Robot Miss Streak 3 | . 2 1 3 2 1 2 2 Penetration Max . | . . . . . . . . Secondary Targets 4 | . 1 2 1 . . . . Max Gunslinging Chain 1 | . 1 1 1 . . . . Shots Hit Robots 88 | . 9 10 18 6 9 16 20 Core Hits 61 | . 5 6 10 7 6 16 11 Critical Kills 1 | . . . 1 . . . . Critical Parts Destroyed 1 | . . 1 . . . . . Critical Strikes 3 | . . 1 1 . . . 1 Burn 1 | . . . . . . . 1 Destroy 2 | . . 1 1 . . . . Melee Attacks 3 | . . . . . . . 3 Impact 3 | . . . . . . . 3 Slashing . | . . . . . . . . Piercing . | . . . . . . . . Sneak Attacks 3 | . . . . . . . 3 Combat Hostiles . | . . . . . . . . Follow-up Attacks . | . . . . . . . . Damage Inflicted 1780 | . 108 126 234 233 138 470 471 Guns 1147 | . 108 126 234 63 126 254 236 Cannons . | . . . . . . . . Explosions 398 | . . . . 170 12 216 . Melee 235 | . . . . . . . 235 Ramming . | . . . . . . . . Kinetic 1030 | . 108 126 234 63 126 254 119 Thermal 117 | . . . . . . . 117 Explosive 398 | . . . . 170 12 216 . Electromagnetic . | . . . . . . . . Impact 235 | . . . . . . . 235 Slashing . | . . . . . . . . Piercing . | . . . . . . . . Highest Corruption 11 | . . . . . . . 11 Average Corruption 7 | . . . . . . . 7 Corruption Purged . | . . . . . . . . Corruption Blocked . | . . . . . . . . Effects 2 | . . . . . . . 2 Parts Rejected 1 | . . . . . . . 1 Data Loss (minor) 1 | . . . . . . . 1 Overload Shots . | . . . . . . . . Overflow Damage 103 | . . . . . . 12 91 Projectiles . | . . . . . . . . Explosions 12 | . . . . . . 12 . Melee 91 | . . . . . . . 91 Knockbacks 2 | . . . . . . . 2 Impact 2 | . . . . . . . 2 Kinetic . | . . . . . . . . Secondary . | . . . . . . . . Self-Inflicted Damage 163 | . . . . . 25 138 . Shots 5 | . . . . . 1 4 . Rammed . | . . . . . . . . Targets Rammed . | . . . . . . . . Kicked . | . . . . . . . . Crushed . | . . . . . . . . Highest Temperature 60 | . . . . . 8 60 38 Average Temperature 18 | . . . . . 3 20 17 Received Heat Transfer 661 | . 6 . 66 . 45 135 409 Siege Activations . | . . . . . . . . Robots Corrupted 2 | . . . . . . . 2 Combat Hostiles . | . . . . . . . . Parts Fried 3 | . . . . . . . 3 Impact Corruptions 3 | . . . . . . . 3 Robots Melted . | . . . . . . . . Combat Hostiles . | . . . . . . . . Parts Melted 1 | . . . . . . 1 . Heat Transferred 370 | . . . . . . . 370 Parts Sabotaged . | . . . . . . . . Parts Stolen . | . . . . . . . . Parts Stripped . | . . . . . . . . Power Chain Reactions . | . . . . . . . . Alert | -11 -10 -10 -9 -9 -8 -8 -7 ------- Run | Yrd Mat Min Mat Min Mat Sto Fac Peak Influence 439 | . 83 186 248 116 124 439 414 Initial 199 | . . 31 72 96 44 52 199 Average 177 | . 45 140 133 101 81 279 210 Maximum Alert Level 2 | . . . 1 . . 2 2 Low Security (%) 56 | 100 100 100 72 100 100 18 41 Level 1 38 | . . . 27 . . 58 56 Level 2 4 | . . . . . . 22 2 Level 3 . | . . . . . . . . Level 4 . | . . . . . . . . Level 5 . | . . . . . . . . High Security . | . . . . . . . . Max Security . | . . . . . . . . Squads Dispatched 3 | . 1 . . . . . 2 Investigation 1 | . 1 . . . . . . Extermination 1 | . . . . . . . 1 Reinforcement 1 | . . . . . . . 1 Assault . | . . . . . . . . Garrison . | . . . . . . . . Intercept . | . . . . . . . . Searches Triggered . | . . . . . . . . Construction Impeded . | . . . . . . . . Haulers Reinforced . | . . . . . . . . Active Scanning Responses . | . . . . . . . . Cargo Convoy Interrupts . | . . . . . . . . Stealth | -11 -10 -10 -9 -9 -8 -8 -7 --------- Run | Yrd Mat Min Mat Min Mat Sto Fac Distress Signals 3 | . . . . . . . 3 Communications Jammed . | . . . . . . . . Distress Signals . | . . . . . . . . Times Spotted 68 | . 11 6 7 10 2 11 21 Peak Tracking Total 17 | . 7 3 4 17 2 4 4 Tactical Retreats 3 | . . . . 2 . . 1 Traps | -11 -10 -10 -9 -9 -8 -8 -7 ------- Run | Yrd Mat Min Mat Min Mat Sto Fac Traps Triggered 5 | . 1 . . . . 1 3 Indirectly . | . . . . . . . . Trap Hack Attempts . | . . . . . . . . Triggered . | . . . . . . . . Disarmed . | . . . . . . . . Reprogrammed . | . . . . . . . . Reused . | . . . . . . . . Traps Extracted . | . . . . . . . . Installed . | . . . . . . . . Triggered . | . . . . . . . . Machines | -11 -10 -10 -9 -9 -8 -8 -7 ---------- Run | Yrd Mat Min Mat Min Mat Sto Fac Machines Disabled 3 | . . . . . . 3 . Max in Single Turn 1 | . . . . . . 1 . Machines Repaired . | . . . . . . . . Machines Dismantled . | . . . . . . . . Machines Sabotaged . | . . . . . . . . Overloaded Fab Kills . | . . . . . . . . Hacking | -11 -10 -10 -9 -9 -8 -8 -7 --------- Run | Yrd Mat Min Mat Min Mat Sto Fac Machines Accessed 5 | . 2 . . . . 1 2 Terminals 4 | . 2 . . . . 1 1 Fabricators 1 | . . . . . . . 1 Repair Stations . | . . . . . . . . Recycling Units . | . . . . . . . . Scanalyzers . | . . . . . . . . Garrison Access . | . . . . . . . . Total Hacks 12 | . 4 . . . . 3 5 Successful 4 | . 1 . . . . . 3 Failed 8 | . 3 . . . . 3 2 Catastrophic 1 | . 1 . . . . . . Database Lockouts . | . . . . . . . . Manual 3 | . 3 . . . . . . Terminals 10 | . 4 . . . . 3 3 Fabricators 2 | . . . . . . . 2 Repair Stations . | . . . . . . . . Recycling Units . | . . . . . . . . Scanalyzers . | . . . . . . . . Garrison Access . | . . . . . . . . Terminal Hacks 2 | . 1 . . . . . 1 Open DSF 1 | . . . . . . . 1 Branch Access Points 1 | . 1 . . . . . . Fabricator Hacks 2 | . . . . . . . 2 Network Status 1 | . . . . . . . 1 Build 1 | . . . . . . . 1 Repair Station Hacks . | . . . . . . . . Recycling Unit Hacks . | . . . . . . . . Scanalyzer . | . . . . . . . . Garrison Access Hacks . | . . . . . . . . Unauthorized Hacks . | . . . . . . . . Terminals . | . . . . . . . . Fabricators . | . . . . . . . . Repair Stations . | . . . . . . . . Recycling Units . | . . . . . . . . Scanalyzers . | . . . . . . . . Garrison Access . | . . . . . . . . Data Cores Recovered 1 | . 1 . . . . . . Used . | . . . . . . . . Hacking Detections 4 | . 2 . . . . 1 1 Full Trace Events 1 | . . . . . . 1 . Feedback Events . | . . . . . . . . Feedback Blocked . | . . . . . . . . Robot Schematics Acquired . | . . . . . . . . Robots Built . | . . . . . . . . Authchips . | . . . . . . . . Time . | . . . . . . . . Total Robot Build Rating . | . . . . . . . . Part Schematics Acquired . | . . . . . . . . Parts Built 2 | . . . . . . . 2 Authchips . | . . . . . . . . Time 58 | . . . . . . . 58 Total Part Build Rating 14 | . . . . . . . 14 Parts Repaired . | . . . . . . . . Time . | . . . . . . . . Parts Recycled . | . . . . . . . . Recycled Matter . | . . . . . . . . Retrieved Matter . | . . . . . . . . Retrieved Components . | . . . . . . . . Parts Scanalyzed . | . . . . . . . . Part Schematics Acquired . | . . . . . . . . Parts Damaged . | . . . . . . . . Bothacking | -11 -10 -10 -9 -9 -8 -8 -7 ------------ Run | Yrd Mat Min Mat Min Mat Sto Fac Used RIF Installer . | . . . . . . . . Robots Hacked . | . . . . . . . . Non-combat . | . . . . . . . . Combat . | . . . . . . . . Robot Hacks Applied . | . . . . . . . . Relay Couplers Released . | . . . . . . . . Fabnet Peak Effective % . | . . . . . . . . Robots Rewired . | . . . . . . . . Allies Hacked . | . . . . . . . . Hacks Repelled . | . . . . . . . . Allies | -11 -10 -10 -9 -9 -8 -8 -7 -------- Run | Yrd Mat Min Mat Min Mat Sto Fac Total Allies 10 | . . . . . . 10 . Largest Group 10 | . . . . . . 10 9 Highest-Rated Group 173 | . . . . . . 173 144 Highest-Rated Ally 29 | . . . . . . 29 16 Total Orders . | . . . . . . . . Ally Attacks 93 | . . . . . . 24 69 Total Damage 1069 | . . . . . . 294 775 Kills 11 | . . . . . . 3 8 Allies Corrupted 1 | . . . . . . 1 . Allies Melted . | . . . . . . . . Intel | -11 -10 -10 -9 -9 -8 -8 -7 ------- Run | Yrd Mat Min Mat Min Mat Sto Fac Robot Analysis Total . | . . . . . . . . Derelict Logs Recovered 1 | . . 1 . . . . . Drone Launches . | . . . . . . . . Drone Recoveries . | . . . . . . . . Exploration | -11 -10 -10 -9 -9 -8 -8 -7 ------------- Run | Yrd Mat Min Mat Min Mat Sto Fac Turns Passed 1996 | 86 153 121 186 105 71 295 979 Spaces Moved 1056 | 46 110 84 104 70 40 177 425 Core 26 | 15 . . . . . . 11 Treads 91 | . . . . . . . 91 Legs 939 | 31 110 84 104 70 40 177 323 Wheels . | . . . . . . . . Hover . | . . . . . . . . Flight . | . . . . . . . . Fastest Speed 50 | 50 120 120 120 120 120 120 50 Average Speed 151 | 153 120 120 120 120 120 134 189 Slowest Speed 350 | 190 120 120 120 120 120 190 350 Overloaded Moves . | . . . . . . . . Propulsion Burnouts . | . . . . . . . . Robots Hopped . | . . . . . . . . Cave-ins Triggered . | . . . . . . . . Exploration Rate (%) 15 | 4 22 16 8 15 8 34 14 Regions Visited 7 Branch Regions 3 Pre-discovered Areas 1 | . . 1 . . . . . Known Exits Taken 1 | . 1 . . . . . . Unknown Exits Taken 6 | 1 . 1 1 1 1 1 . Scrap Searched . | . . . . . . . . Spaces Dug . | . . . . . . . . Terrain Destroyed 46 | . . . . 26 9 11 . Melee . | . . . . . . . . Projectile . | . . . . . . . . AOE 46 | . . . . 26 9 11 . Terrain Rammed . | . . . . . . . . Walls Destroyed . | . . . . . . . . Machines Disabled . | . . . . . . . . Actions | -11 -10 -10 -9 -9 -8 -8 -7 --------- Run | Yrd Mat Min Mat Min Mat Sto Fac Total 1315 | 62 119 90 135 81 53 205 570 Wait 111 | . . . 10 . . . 101 Move 1049 | 45 109 83 103 69 39 176 425 Hop . | . . . . . . . . Pick Up 26 | 12 2 . 2 2 2 1 5 Fast Attach 3 | . . . 2 . . . 1 Attach 22 | 5 2 . . 2 2 2 9 Detach . | . . . . . . . . Swap 2 | . . . . . 1 1 . Drop 6 | . . . 3 1 . . 2 Fire 93 | . 6 7 15 7 9 25 24 Melee 3 | . . . . . . . 3 Ram . | . . . . . . . . Kick . | . . . . . . . . Crush . | . . . . . . . . Escape Stasis . | . . . . . . . . Rewire . | . . . . . . . . Trap . | . . . . . . . . Miscellaneous . | . . . . . . . . Route ------- -11/Scrapyard -10/Materials (discovered 2 exits: *Min x2) -10/Mines -9/Materials -9/Mines -8/Materials -8/Storage -7/Factory History --------- Turn | Location | Event 19 | -11/Scrapyard | Discovered new exit (range 16) 87 | -11/Scrapyard | Entered Materials 222 | -10/Materials | Identified exit to Mines 240 | -10/Materials | Entered Mines 293 | -10/Mines | Discovered new exit (range 11) 308 | -10/Mines | Build established: Mutant 361 | -10/Mines | Entered Materials 361 | -9/Materials | Evolved 2 slots: Propulsion x2 503 | -9/Materials | Discovered new exit (range 16) 547 | -9/Materials | Entered Mines 548 | -9/Mines | Assembled infested the area 553 | -9/Mines | Assisted by a Guerilla fighting off Assembled 568 | -9/Mines | YI-UF0 nonchalantly dropped a Grenade Launcher on the ground 643 | -9/Mines | Discovered new exit (range 6) 652 | -9/Mines | Entered Materials 652 | -8/Materials | Evolved 2 slots: Propulsion x2 695 | -8/Materials | Discovered new exit (range 15) 723 | -8/Materials | Entered Storage 806 | -8/Storage | Lost 4 parts (3n1w) 864 | -8/Storage | Assisted by bots powering up and referring to "LRC-V3" 988 | -8/Storage | Discovered new exit (range 16) 1018 | -8/Storage | Entered Factory 1018 | -7/Factory | Accompanied by 9 allies 1018 | -7/Factory | Evolved 2 slots: Propulsion x2 1138 | -7/Factory | Build established: Commander-Mutant 1166 | -7/Factory | Lost 4 allies 1466 | -7/Factory | Fabricated Imp. Remote Shield (x2) 1691 | -7/Factory | Build established: Mutant 1937 | -7/Factory | Lost 4 parts (1n1u2w) 1949 | -7/Factory | Core integrity fell below 50% 1962 | -7/Factory | System corruption reached 10% 1973 | -7/Factory | Core integrity fell below 20% 1997 | -7/Factory | Destroyed by Y-54 Guardian with Flak Gun Last Messages --------------- K-01 Serf collects debris. Penetrated by Slug. System corrupted: Med. Reactive Plating rejected. K-01 Serf collects debris. Titanium Leg destroyed. Slug penetrates Wall. K-01 Serf collects debris. Penetrated by Slug. K-01 Serf collects debris. K-01 Serf destroyed. H-55 Commando destroyed. M-28 Smith repairs A-02 Transporter. R-06 Scavenger collects Gauss Rifle. U-05 Engineer builds a Door. K-01 Serf collects debris. R-06 Scavenger collects Lgt. Nuclear Core. R-06 Scavenger collects Targeting Computer. K-01 Serf collects debris. Hrd. Heavy Armor Plating destroyed. Map ----- +----------------------------------------------------+ | ???????????????????????# #????????????# ???? | | ???????????????????????# #????????????# ???? | | ???????????????????????# #####????????????#] ???? | | ???????????????????????# #????????????????# ????? | | ???????????????????????# #????????????????# ????? | | ???????????????????????# #????????????????###????? | | ???????????????????????# #???????????????????????? | | ???????????????????????#%#???????????????????????? | | ???????????????????????# #???????????????????????? | | ???????????????????????# #???????????????????????? | | ???????????????????????# #???????????????????????? | | ??????????????????????## ###########?????????????? | | ??????????????????????# #?????????????? | | ??????????????????????# ####??????????? | | ??????????????????????# +??????????? | | ??????????????????????# ####??????????? | | ??????????????????????# #?????????????? | | ??????????????????????# #?????????????? | | ??????????????????????# w ####??????????? | | ??????????????????????# ?????????? | | ??????????????????????# k ?????????? | | ??????????????????????+ ?????????? | | ??????????????????????# ?????????? | | ??????????????????????# Y ?????????? | | ??????????????????????# %rp###########??????????? | | ??????????????????????# @ #????????????????????? | | ??????????????????????# #????????????????????? | | ??????????????????????# #????????????????????? | | ??????????????????????# = u#????????????????????? | | ??????????????????????# %= #????????????????????? | | ??????????????????????# * #????????????????????? | | ??????????????????????# =% #????????????????????? | | ????????????????? ???# u#????????????????????? | | ??????????????????""??# #????????????????????? | | ????????????????? """?# #????????????????????? | | ???????????????????"" # #????????????????????? | | ????????????????????? + +????????????????????? | | ??????????????????????# ! # ???????????????????? | | ??????????????????????# # ???????????????????? | | ??????????????????????# #?"??????????????????? | | ??????????????????????# #? ?????????????????? | | ??????????????????????# #?? ?????????????????? | | ??????????????????????# #????????????????????? | | ??????????????????????# #????????????????????? | | ??????????????????????# #????????????????????? | | ??????????????????????# #????????????????????? | | ??????????????????????# #????????????????????? | | ??????????????????????# #????????????????????? | | ??????????????????????# #????????????????????? | | ??????????????????????# #????????????????????? | +----------------------------------------------------+ Best States ------------- Heat Dissipation 34 Energy Generation 10 Energy Capacity 250 Matter Stores 300 Matter Capacity 300 Sight Range 16 Robot Scan Range 14 Terrain Scan Density 110 Armor Coverage 600 Resistance: KI 30 Evasion (%) 55 Recoil Reduction 1 Item Schematics ----------------- None Robot Schematics ------------------ None Fabricated ------------ Imp. Remote Shield | x2 | -7/Factory | Preloaded Alien Tech Used ----------------- None Achievements -------------- None Challenges ------------ None Game ------ Seed LayeredDerelictBuckler Manual? 0 Play Time 00:20:30 Cumulative 11.4 hours Start 2024.10.28 @ 21:57:36 End 2024.10.31 @ 23:00:39 Sessions 4 Manual Loads 0 Difficulty Rogue Special Mode None Game No. 28 Rogue 25 Adventurer 1 Explorer 2 Win Type - Total 0 Types 0/0/0/0/0/0/0/0/0 Lore% 12 Gallery% 20 Achievement% 18 Wizard Run 0 Options --------- Layout 1 ASCII 0 Keyboard 0 Movement Mouse Keybinds 0 Fullscreen 1 Font 48/Smallcaps Map View 50x35 Zoom Use 0% Tactical HUD 0 Map Filters NONE Filters NONE Steam 1 RUN: a8f677f9-8bd5-4b62-904a-7b2cdfb421af